lending/lending_fUSD_20240809
["ID","MTS","AMOUNT","RATE_DAILY","PERIOD"]
[334516152,1723171876357,-500.0,0.00024286,5]
[334516153,1723171876367,-500.0,0.00024286,5]
[334516154,1723171876378,-500.0,0.00024286,5]
[334516155,1723171876387,-500.0,0.00024286,5]
[334516156,1723171876396,-500.0,0.00024286,5]
[334516157,1723171876407,-1492.08,0.00024286,5]
[334516158,1723171876416,-1492.08,0.00024286,5]
[334516159,1723171876427,-1492.08,0.00024286,5]
[334516160,1723171876438,-594.87,0.00024286,5]
[334516161,1723171876447,-594.87,0.00024286,5]
[334516162,1723171876458,-500.0,0.00024286,5]
[334516163,1723171876469,-500.0,0.00024286,5]
[334516164,1723171876479,-594.87,0.00024286,5]
[334516165,1723171876488,-500.0,0.00024286,5]
[334516166,1723171876498,-21990.9,0.00024286,5]
[334516167,1723171876508,-500.0,0.00024286,5]
[334516168,1723171876518,-500.0,0.00024286,5]
[334516169,1723171876527,-500.0,0.00024286,5]
[334516170,1723171876537,-500.0,0.00024286,5]
[334516171,1723171876546,-500.0,0.00024286,5]
[334516172,1723171876557,-500.0,0.00024286,5]
[334516173,1723171876567,-1548.35,0.00024286,5]
[334516174,1723171876577,-1548.35,0.00024286,5]
[334516175,1723171876586,-1548.35,0.00024286,5]
[334516176,1723171876596,-500.0,0.00024286,5]
[334516177,1723171876605,-500.0,0.00024286,5]
[334516178,1723171876615,-500.0,0.00024286,5]
[334516179,1723171876625,-500.0,0.00024286,5]
[334516180,1723171876635,-500.0,0.00024286,5]
[334516181,1723171876644,-500.0,0.00024286,5]
[334516182,1723171876654,-504.64468926,0.00024286,5]
[334516183,1723171876663,-629.42,0.00024286,5]
[334516184,1723171876672,-1023.89,0.00024286,5]
[334516185,1723171876681,-1023.89,0.00024286,5]
[334516186,1723171876690,-1023.89,0.00024286,5]
[334516187,1723171876699,-1426.29,0.00024286,5]
[334516188,1723171876709,-1426.29,0.00024286,5]
[334516189,1723171876718,-1426.29,0.00024286,5]
[334516190,1723171876727,-500.0,0.00024286,5]
[334516191,1723171876736,-422.82,0.00024286,5]
[334516192,1723171876746,-500.0,0.00024286,5]
[334516193,1723171876759,-500.0,0.00024286,5]
[334516194,1723171876768,-522.78,0.00024286,5]
[334516195,1723171876778,-500.0,0.00024286,5]
[334516196,1723171876788,-500.0,0.00024286,5]
[334516197,1723171876798,-500.0,0.00024286,5]
[334516198,1723171876807,-502.38495636,0.00024286,5]
[334516199,1723171876817,-500.0,0.00024286,5]
[334516200,1723171876826,-500.0,0.00024286,5]
[334516201,1723171876837,-500.0,0.00024286,5]
[334516202,1723171876846,-500.0,0.00024286,5]
[334516203,1723171876856,-500.0,0.00024286,5]
[334516204,1723171876865,-500.0,0.00024286,5]
[334516205,1723171876875,-585.22,0.00024286,5]
[334516206,1723171876884,-585.22,0.00024286,5]
[334516207,1723171876894,-585.22,0.00024286,5]
[334516208,1723171876904,-1687.86,0.00024286,5]
[334516209,1723171876914,-1687.86,0.00024286,5]
[334516210,1723171876925,-1687.86,0.00024286,5]
[334516211,1723171876935,-500.0,0.00024286,5]
[334516212,1723171876946,-500.0,0.00024286,5]
[334516213,1723171876957,-545.34,0.00024286,5]
[334516214,1723171876968,-500.0,0.00024286,5]
[334516215,1723171876978,-500.0,0.00024286,5]
[334516216,1723171876990,-500.0,0.00024286,5]
[334516217,1723171877000,-500.0,0.00024286,5]
[334516218,1723171877012,-563.54994354,0.00024287,5]
[334516219,1723171877023,-500.0,0.00024287,5]
[334516220,1723171877033,-1067.81,0.00024287,5]
[334516221,1723171877043,-500.0,0.00024287,5]
[334516222,1723171877054,-519.28021042,0.00024287,5]
[334516223,1723171877064,-500.0,0.00024287,5]
[334516224,1723171877074,-498.29010698,0.00024287,5]
[334516225,1723171877084,-500.0,0.00024287,5]
[334516226,1723171877094,-501.21455154,0.00024287,5]
[334516227,1723171877103,-500.41044121,0.00024287,5]
[334516228,1723171877113,-500.0,0.00024287,5]
[334516229,1723171877124,-542.27839346,0.00024287,5]
[334516230,1723171877133,-590.12913618,0.00024287,5]
[334516231,1723171877143,-500.0,0.00024287,2]
[334516232,1723171877152,-500.0,0.00024287,5]
[334516233,1723171877162,-500.0,0.00024287,5]
[334516234,1723171877173,-500.0,0.00024287,5]
[334516235,1723171877184,-500.0,0.00024287,5]
[334516236,1723171877195,-500.0,0.00024287,5]
[334516237,1723171877205,-501.2148002,0.00024287,5]
[334516238,1723171877215,-500.0,0.00024287,5]
[334516239,1723171877225,-501.38112643,0.00024287,5]
[334516240,1723171877236,-500.0,0.00024287,5]
[334516241,1723171877245,-500.0,0.00024287,5]
[334516242,1723171877255,-464.48894618,0.00024287,5]
[334516243,1723171877266,-500.0,0.00024287,5]
[334516244,1723171877275,-500.0,0.00024287,5]
[334516245,1723171877286,-501.79661498,0.00024287,5]
[334516246,1723171877295,-500.0,0.00024287,5]
[334516247,1723171877306,-500.0,0.00024287,5]
[334516248,1723171877315,-500.0,0.00024287,5]
[334516249,1723171877325,-500.0,0.00024287,5]
[334516250,1723171877334,-500.0,0.00024287,5]
[334516251,1723171877344,-500.0,0.00024287,2]
[334516252,1723171877353,-530.18950419,0.00024287,5]
[334516253,1723171877362,-167.63180873,0.00024287,5]
[334516254,1723171877373,-500.0,0.00024287,5]
[334516255,1723171877383,-500.0,0.00024287,5]
[334516256,1723171877393,-500.0,0.00024287,5]
[334516257,1723171877402,-503.32405472,0.00024287,5]
[334516258,1723171877412,-579.06136545,0.00024287,5]
[334516259,1723171877421,-500.0,0.00024287,5]
[334516260,1723171877431,-500.0,0.00024287,5]
[334516261,1723171877440,-500.0,0.00024287,5]
[334516262,1723171877450,-150.0,0.00024291,2]
[334516263,1723171877459,-150.0,0.000243,2]
[334516264,1723171877469,-150.0,0.00024305,2]
[334516265,1723171877478,-150.0,0.00024312,2]
[334516266,1723171877487,-150.0,0.00024315,2]
[334516267,1723171877497,-150.0,0.00024319,2]
[334516268,1723171877506,-150.0,0.00024319,2]
[334516269,1723171877516,-150.0,0.0002432,2]
[334516270,1723171877525,-150.0,0.0002432,2]
[334516271,1723171877534,-150.0,0.00024323,2]
[334516272,1723171877544,-150.0,0.00024325,2]
[334516273,1723171877553,-150.0,0.00024327,2]
[334516274,1723171877563,-150.0,0.00024329,2]
[334516275,1723171877572,-150.0,0.00024329,2]
[334516276,1723171877582,-150.0,0.00024329,2]
[334516277,1723171877591,-150.0,0.00024332,2]
[334516278,1723171877601,-150.0,0.00024333,2]
[334516279,1723171877611,-150.0,0.00024336,2]
[334516280,1723171877620,-150.0,0.00024337,2]
[334516281,1723171877630,-150.0,0.00024338,2]
[334516282,1723171877639,-150.0,0.00024338,2]
[334516283,1723171877649,-150.0,0.00024344,2]
[334516284,1723171877658,-150.0,0.00024346,2]
[334516285,1723171877667,-150.0,0.0002435,2]
[334516286,1723171877676,-150.0,0.00024351,2]
[334516287,1723171877686,-150.0,0.00024355,2]
[334516288,1723171877695,-150.0,0.00024359,2]
[334516289,1723171877705,-150.0,0.00024362,2]
[334516290,1723171877714,-150.0,0.00024368,2]
[334516291,1723171877725,-150.0,0.00024369,2]
[334516292,1723171877734,-150.0,0.00024371,2]
[334516293,1723171877744,-150.0,0.00024373,2]
[334516294,1723171877756,-150.0,0.00024376,2]
[334516295,1723171877766,-150.0,0.00024376,2]
[334516296,1723171877776,-150.0,0.00024377,2]
[334516297,1723171877786,-150.0,0.00024379,2]
[334516298,1723171877797,-150.0,0.0002438,2]
[334516299,1723171877808,-150.0,0.00024381,2]
[334516300,1723171877819,-150.0,0.00024391,2]
[334516301,1723171877829,-150.0,0.00024392,2]
[334516302,1723171877840,-500.0,0.00024393,5]
[334516303,1723171877850,-150.0,0.00024393,2]
[334516304,1723171877860,-1030.47,0.00024393,5]
[334516305,1723171877871,-500.0,0.00024393,5]
[334516306,1723171877881,-1087.85,0.00024393,5]
[334516307,1723171877891,-760.07,0.00024393,5]
[334516308,1723171877901,-751.62,0.00024393,5]
[334516309,1723171877911,-500.0,0.00024393,5]
[334516310,1723171877920,-1179.51,0.00024393,5]
[334516311,1723171877931,-500.0,0.00024393,5]
[334516312,1723171877941,-598.99,0.00024393,5]
[334516313,1723171877951,-3716.14,0.00024393,5]
[334516314,1723171877961,-327.57740819,0.00024393,5]
[334516315,1723171877971,-500.0,0.00024393,5]
[334516316,1723171877981,-500.0,0.00024393,5]
[334516317,1723171877991,-3660.94,0.00024393,5]
[334516318,1723171878001,-538.1,0.00024393,5]
[334516319,1723171878011,-1099.01,0.00024393,5]
[334516320,1723171878020,-500.0,0.00024393,5]
[334516321,1723171878031,-970.9,0.00024393,5]
[334516322,1723171878041,-500.0,0.00024393,5]
[334516323,1723171878052,-500.0,0.00024393,5]
[334516324,1723171878062,-500.0,0.00024393,5]
[334516325,1723171878073,-500.0,0.00024393,5]
[334516326,1723171878083,-1372.31,0.00024393,5]
[334516327,1723171878093,-685.82,0.00024393,5]
[334516328,1723171878104,-763.14,0.00024393,5]
[334516329,1723171878114,-5475.75,0.00024393,5]
[334516330,1723171878129,-500.0,0.00024393,5]
[334516331,1723171878139,-603.71,0.00024393,5]
[334516332,1723171878150,-1647.52,0.00024393,5]
[334516333,1723171878161,-1657.95,0.00024393,5]
[334516334,1723171878171,-698.82,0.00024393,5]
[334516335,1723171878181,-546.95,0.00024393,5]
[334516336,1723171878190,-500.0,0.00024393,5]
[334516337,1723171878201,-768.86,0.00024393,5]
[334516338,1723171878212,-4784.19,0.00024393,5]
[334516339,1723171878223,-1117.66,0.00024393,5]
[334516340,1723171878233,-7984.18,0.00024393,5]
[334516341,1723171878243,-407.5704695,0.00024393,5]
[334516342,1723171878253,-22868.86,0.00024393,5]
[334516343,1723171878263,-1029.68,0.00024393,5]
[334516344,1723171878273,-787.01,0.00024393,5]
[334516345,1723171878285,-522.35,0.00024393,5]
[334516346,1723171878295,-1240.88,0.00024393,5]
[334516347,1723171878307,-500.0,0.00024393,5]
[334516348,1723171878317,-879.25,0.00024393,5]
[334516349,1723171878328,-151.19238078,0.00024393,5]
[334516350,1723171878339,-12430.38,0.00024393,5]
[334516351,1723171878350,-588.19,0.00024393,5]
[334516352,1723171878360,-478.59463328,0.00024393,5]
[334516353,1723171878374,-778.35,0.00024393,5]
[334516354,1723171878384,-500.0,0.00024393,5]
[334516355,1723171878394,-9557.82,0.00024393,5]
[334516356,1723171878404,-1041.58,0.00024393,5]
[334516357,1723171878415,-5140.42,0.00024393,5]
[334516358,1723171878426,-593.97,0.00024393,5]
[334516359,1723171878436,-5140.42,0.00024393,5]
[334516360,1723171878447,-507.56,0.00024393,5]
[334516361,1723171878456,-5140.42,0.00024393,5]
[334516362,1723171878467,-5701.83,0.00024393,5]
[334516363,1723171878477,-5140.42,0.00024393,5]
[334516364,1723171878487,-5140.42,0.00024393,5]
[334516365,1723171878498,-5140.54400313,0.00024393,5]
[334516366,1723171878509,-4769.55,0.00024393,5]
[334516367,1723171878519,-5090.01,0.00024393,5]
[334516368,1723171878529,-6312.57,0.00024393,5]
[334516369,1723171878540,-6312.57,0.00024393,5]
[334516370,1723171878551,-6312.57,0.00024393,5]
[334516371,1723171878561,-6312.57,0.00024393,5]
[334516372,1723171878572,-6312.57,0.00024393,5]
[334516373,1723171878582,-6312.5848788,0.00024393,5]
[334516374,1723171878592,-500.0,0.00024393,5]
[334516375,1723171878602,-698.07,0.00024393,5]
[334516376,1723171878612,-1143.18,0.00024393,5]
[334516377,1723171878625,-1362.05,0.00024393,5]
[334516378,1723171878635,-3946.84,0.00024393,5]
[334516379,1723171878645,-3946.84,0.00024393,5]
[334516380,1723171878656,-3946.84,0.00024393,5]
[334516381,1723171878666,-3946.84,0.00024393,5]
[334516382,1723171878677,-3946.84,0.00024393,5]
[334516383,1723171878687,-3946.85865817,0.00024393,5]
[334516384,1723171878698,-3267.61,0.00024393,5]
[334516385,1723171878707,-703.68,0.00024393,5]
[334516386,1723171878718,-6313.33,0.00024393,5]
[334516387,1723171878727,-6313.33,0.00024393,5]
[334516388,1723171878737,-6313.33,0.00024393,5]
[334516389,1723171878748,-6313.33,0.00024393,5]
[334516390,1723171878762,-6313.33,0.00024393,5]
[334516391,1723171878772,-6313.46790454,0.00024393,5]
[334516392,1723171878782,-2841.53,0.00024393,5]
[334516393,1723171878792,-4591.48,0.00024393,5]
[334516394,1723171878802,-4591.48,0.00024393,5]
[334516395,1723171878812,-4591.48,0.00024393,5]
[334516396,1723171878821,-4591.48,0.00024393,5]
[334516397,1723171878831,-4591.48,0.00024393,5]
[334516398,1723171878842,-4591.7113805,0.00024393,5]
[334516399,1723171878852,-1568.85,0.00024393,5]
[334516400,1723171878862,-7576.58,0.00024393,5]
[334516401,1723171878877,-5978.79,0.00024393,5]
[334516402,1723171878893,-6192.07,0.00024393,5]
[334516403,1723171878903,-4887.81,0.00024393,5]
[334516404,1723171878913,-4887.81,0.00024393,5]
[334516405,1723171878923,-4887.81,0.00024393,5]
[334516406,1723171878932,-4887.81,0.00024393,5]
[334516407,1723171878942,-4887.81,0.00024393,5]
[334516408,1723171878951,-4888.03528641,0.00024393,5]
[334516409,1723171878961,-10706.0,0.00024393,5]
[334516410,1723171878971,-2407.89,0.00024393,5]
[334516411,1723171878981,-2407.89,0.00024393,5]
[334516412,1723171878992,-2407.89,0.00024393,5]
[334516413,1723171879002,-2407.89,0.00024393,5]
[334516414,1723171879012,-2407.89,0.00024393,5]
[334516415,1723171879022,-2408.0004031,0.00024393,5]
[334516416,1723171879033,-12014.54,0.00024393,5]
[334516417,1723171879060,-7235.6,0.00024393,5]
[334516418,1723171879072,-36150.29,0.00024393,5]
[334516419,1723171879082,-2736.55,0.00024393,5]
[334516420,1723171879092,-612.49,0.00024394,5]
[334516421,1723171879266,-500.0,0.00024394,5]
[334516422,1723171879276,-500.0,0.00024394,5]
[334516423,1723171879285,-1030.47,0.00024394,5]
[334516424,1723171879294,-2943.42,0.00024394,5]
[334516425,1723171879304,-500.0,0.00024394,5]
[334516426,1723171879313,-500.0,0.00024394,5]
[334516427,1723171879323,-500.0,0.00024394,5]
[334516428,1723171879332,-2150.58,0.00024394,5]
[334516429,1723171879341,-2345.46,0.00024394,5]
[334516430,1723171879350,-1087.85,0.00024394,5]
[334516431,1723171879360,-760.07,0.00024394,5]
[334516432,1723171879369,-751.62,0.00024394,5]
[334516433,1723171879378,-500.0,0.00024394,5]
[334516434,1723171879388,-751.62,0.00024394,5]
[334516435,1723171879398,-1179.51,0.00024394,5]
[334516436,1723171879407,-470.64043985,0.00024394,5]
[334516437,1723171879418,-598.99,0.00024394,5]
[334516438,1723171879428,-598.99,0.00024394,5]
[334516439,1723171879437,-3716.14,0.00024394,5]
[334516440,1723171879447,-6388.29,0.00024394,5]
[334516441,1723171879457,-500.0,0.00024394,5]
[334516442,1723171879466,-500.0,0.00024394,5]
[334516443,1723171879476,-18922.96,0.00024394,5]
[334516444,1723171879486,-500.0,0.00024394,5]
[334516445,1723171879495,-3660.94,0.00024394,5]
[334516446,1723171879504,-538.1,0.00024394,5]
[334516447,1723171879514,-1099.01,0.00024394,5]
[334516448,1723171879523,-538.1,0.00024394,5]
[334516449,1723171879533,-500.0,0.00024394,5]
[334516450,1723171879542,-500.0,0.00024394,5]
[334516451,1723171879553,-970.9,0.00024394,5]
[334516452,1723171879563,-970.9,0.00024394,5]
[334516453,1723171879573,-500.0,0.00024394,5]
[334516454,1723171879582,-500.0,0.00024394,5]
[334516455,1723171879592,-500.0,0.00024394,5]
[334516456,1723171879602,-5520.18,0.00024394,5]
[334516457,1723171879612,-2254.7,0.00024394,5]
[334516458,1723171879622,-546.28308395,0.00024394,5]
[334516459,1723171879631,-439.23201472,0.00024394,5]
[334516460,1723171879640,-1372.31,0.00024394,5]
[334516461,1723171879651,-1372.31,0.00024394,5]
[334516462,1723171879660,-685.82,0.00024394,5]
[334516463,1723171879670,-685.82,0.00024394,5]
[334516464,1723171879680,-8839.04,0.00024394,5]
[334516465,1723171879689,-763.14,0.00024394,5]
[334516466,1723171879700,-763.14,0.00024394,5]
[334516467,1723171879709,-5475.75,0.00024394,5]
[334516468,1723171879719,-5475.75,0.00024394,5]
[334516469,1723171879729,-500.0,0.00024394,5]
[334516470,1723171879739,-500.0,0.00024394,5]
[334516471,1723171879748,-603.71,0.00024394,5]
[334516472,1723171879761,-1647.52,0.00024394,5]
[334516473,1723171879771,-1647.52,0.00024394,5]
[334516474,1723171879781,-3247.8,0.00024394,5]
[334516475,1723171879792,-1657.95,0.00024394,5]
[334516476,1723171879802,-1657.95,0.00024394,5]
[334516477,1723171879812,-698.82,0.00024394,5]
[334516478,1723171879823,-698.82,0.00024394,5]
[334516479,1723171879834,-546.95,0.00024394,5]
[334516480,1723171879843,-151.0,0.00024394,7]
[334516481,1723171879853,-546.95,0.00024394,5]
[334516482,1723171879863,-500.0,0.00024394,5]
[334516483,1723171879871,-500.0,0.00024394,5]
[334516484,1723171879881,-768.86,0.00024394,5]
[334516485,1723171879891,-2430.76,0.00024394,5]
[334516486,1723171879900,-4784.19,0.00024394,5]
[334516487,1723171879910,-768.86,0.00024394,5]
[334516488,1723171879920,-4784.19,0.00024394,5]
[334516489,1723171879930,-3000.82,0.00024394,5]
[334516490,1723171879939,-1117.66,0.00024394,5]
[334516491,1723171879948,-1117.66,0.00024394,5]
[334516492,1723171879958,-7984.18,0.00024394,5]
[334516493,1723171879968,-7984.18,0.00024394,5]
[334516494,1723171879977,-5005.7,0.00024394,5]
[334516495,1723171879987,-14156.83,0.00024394,5]
[334516496,1723171879997,-1065.94,0.00024394,5]
[334516497,1723171880006,-22868.86,0.00024394,5]
[334516498,1723171880016,-1029.68,0.00024394,5]
[334516499,1723171880025,-22868.86,0.00024394,5]
[334516500,1723171880035,-1029.68,0.00024394,5]
[334516501,1723171880044,-2348.69,0.00024394,5]
[334516502,1723171880054,-24585.65,0.00024394,5]
[334516503,1723171880063,-787.01,0.00024394,5]
[334516504,1723171880073,-787.01,0.00024394,5]
[334516505,1723171880082,-522.35,0.00024394,5]
[334516506,1723171880092,-522.35,0.00024394,5]
[334516507,1723171880102,-1965.9,0.00024394,5]
[334516508,1723171880112,-1594.68,0.00024394,5]
[334516509,1723171880123,-1240.88,0.00024394,5]
[334516510,1723171880137,-1240.88,0.00024394,5]
[334516511,1723171880147,-500.0,0.00024394,5]
[334516512,1723171880156,-500.0,0.00024394,5]
[334516513,1723171880166,-500.0,0.00024394,5]
[334516514,1723171880181,-879.25,0.00024394,5]
[334516515,1723171880190,-879.25,0.00024394,5]
[334516516,1723171880200,-12430.38,0.00024394,5]
[334516517,1723171880211,-12430.38,0.00024394,5]
[334516518,1723171880220,-6055.07,0.00024394,5]
[334516519,1723171880230,-588.19,0.00024394,5]
[334516520,1723171880240,-588.19,0.00024394,5]
[334516521,1723171880249,-2674.59,0.00024394,5]
[334516522,1723171880259,-2634.52,0.00024394,5]
[334516523,1723171880268,-778.35,0.00024394,5]
[334516524,1723171880277,-500.0,0.00024394,5]
[334516525,1723171880286,-778.35,0.00024394,5]
[334516526,1723171880296,-500.0,0.00024394,5]
[334516527,1723171880306,-151.0,0.00024394,7]
[334516528,1723171880315,-9557.82,0.00024394,5]
[334516529,1723171880324,-1036.78,0.00024394,5]
[334516530,1723171880334,-1041.58,0.00024394,5]
[334516531,1723171880343,-1041.58,0.00024394,5]
[334516532,1723171880353,-500.0,0.00024394,5]
[334516533,1723171880362,-593.97,0.00024394,5]
[334516534,1723171880371,-593.97,0.00024394,5]
[334516535,1723171880381,-2313.25,0.00024394,5]
[334516536,1723171880390,-507.56,0.00024394,5]
[334516537,1723171880400,-5701.83,0.00024394,5]
[334516538,1723171880411,-507.56,0.00024394,5]
[334516539,1723171880421,-5701.83,0.00024394,5]
[334516540,1723171880431,-4769.55,0.00024394,5]
[334516541,1723171880441,-3195.3,0.00024394,5]
[334516542,1723171880451,-5090.01,0.00024394,5]
[334516543,1723171880461,-5090.01,0.00024394,5]
[334516544,1723171880470,-500.0,0.00024394,5]
[334516545,1723171880480,-5606.14,0.00024394,5]
[334516546,1723171880490,-500.0,0.00024394,5]
[334516547,1723171880500,-500.0,0.00024394,5]
[334516548,1723171880510,-698.07,0.00024394,5]
[334516549,1723171880519,-698.07,0.00024394,5]
[334516550,1723171880528,-1143.18,0.00024394,5]
[334516551,1723171880537,-1362.05,0.00024394,5]
[334516552,1723171880547,-1362.05,0.00024394,5]
[334516553,1723171880556,-1402.26,0.00024394,5]
[334516554,1723171880565,-5278.77,0.00024394,5]
[334516555,1723171880574,-3267.61,0.00024394,5]
[334516556,1723171880584,-3267.61,0.00024394,5]
[334516557,1723171880593,-703.68,0.00024394,5]
[334516558,1723171880603,-703.68,0.00024394,5]
[334516559,1723171880614,-2404.25,0.00024394,5]
[334516560,1723171880628,-5184.38,0.00024394,5]
[334516561,1723171880638,-2841.53,0.00024394,5]
[334516562,1723171880653,-1568.85,0.00024394,5]
[334516563,1723171880662,-7576.58,0.00024394,5]
[334516564,1723171880672,-7576.58,0.00024394,5]
[334516565,1723171880682,-21990.9,0.00024394,5]
[334516566,1723171880691,-5978.79,0.00024394,5]
[334516567,1723171880701,-6192.07,0.00024394,5]
[334516568,1723171880710,-6192.07,0.00024394,5]
[334516569,1723171880724,-10706.0,0.00024394,5]
[334516570,1723171880733,-12014.54,0.00024394,5]
[334516571,1723171880743,-7235.6,0.00024394,5]
[334516572,1723171880752,-12014.54,0.00024394,5]
[334516573,1723171880763,-36150.29,0.00024394,5]
[334516574,1723171880772,-36150.29,0.00024394,5]
[334516575,1723171880782,-500.0,0.00024394,5]
[334516576,1723171880791,-2736.55,0.00024394,5]
[334516577,1723171880801,-545.34,0.00024394,5]
[334516578,1723171880810,-1911.26,0.00024395,5]
[334516579,1723171880820,-500.0,0.00024395,5]
[334516580,1723171880830,-500.0,0.00024395,5]
[334516581,1723171880841,-726.97,0.00024395,5]
[334516582,1723171880850,-500.0,0.00024395,5]
[334516583,1723171880859,-1811.01,0.00024395,5]
[334516584,1723171880868,-500.0,0.00024395,5]
[334516585,1723171880881,-1003.44,0.00024395,5]
[334516586,1723171880891,-500.0,0.00024395,5]
[334516587,1723171880901,-800.94,0.00024395,5]
[334516588,1723171880910,-557.49,0.00024395,5]
[334516589,1723171880920,-1815.71,0.00024395,5]
[334516590,1723171880930,-500.0,0.00024395,5]
[334516591,1723171880941,-1228.71,0.00024395,5]
[334516592,1723171880950,-914.69,0.00024395,5]
[334516593,1723171880959,-500.0,0.00024395,5]
[334516594,1723171880969,-2869.45,0.00024395,5]
[334516595,1723171880978,-2678.36,0.00024395,5]
[334516596,1723171880987,-500.0,0.00024395,5]
[334516597,1723171880997,-848.65,0.00024395,5]
[334516598,1723171881007,-500.0,0.00024395,5]
[334516599,1723171881016,-2190.14,0.00024395,5]
[334516600,1723171881026,-1752.48,0.00024395,5]
[334516601,1723171881035,-644.39,0.00024395,5]
[334516602,1723171881044,-607.23,0.00024395,5]
[334516603,1723171881053,-500.0,0.00024395,5]
[334516604,1723171881064,-643.53,0.00024395,5]
[334516605,1723171881073,-1293.91,0.00024395,5]
[334516606,1723171881083,-809.54,0.00024395,5]
[334516607,1723171881092,-518.36266908,0.00024395,5]
[334516608,1723171881101,-500.0,0.00024395,5]
[334516609,1723171881109,-572.55,0.00024395,5]
[334516610,1723171881119,-2712.63,0.00024395,5]
[334516611,1723171881131,-4126.62,0.00024395,5]
[334516612,1723171881140,-3085.08,0.00024395,5]
[334516613,1723171881150,-2932.68,0.00024395,5]
[334516614,1723171881160,-1397.91,0.00024395,5]
[334516615,1723171881169,-1457.89,0.00024395,5]
[334516616,1723171881178,-500.0,0.00024395,5]
[334516617,1723171881188,-3094.81,0.00024395,5]
[334516618,1723171881197,-776.73,0.00024395,5]
[334516619,1723171881206,-500.0,0.00024395,5]
[334516620,1723171881214,-612.49,0.00024395,5]
[334516621,1723171881224,-612.49,0.00024395,5]
[334516622,1723171881233,-500.0,0.00024395,5]
[334516623,1723171881243,-3406.17,0.00024395,5]
[334516624,1723171881252,-500.0,0.00024395,5]
[334516625,1723171881261,-500.0,0.00024395,5]
[334516626,1723171881270,-1915.74,0.00024395,5]
[334516627,1723171881279,-500.0,0.00024395,5]
[334516628,1723171881289,-1107.61,0.00024395,5]
[334516629,1723171881298,-500.0,0.00024395,5]
[334516630,1723171881307,-500.0,0.00024395,5]
[334516631,1723171881316,-500.0,0.00024395,5]
[334516632,1723171881326,-500.0,0.00024395,5]
[334516633,1723171881335,-500.0,0.00024395,5]
[334516634,1723171881345,-2152.85,0.00024395,5]
[334516635,1723171881354,-500.0,0.00024395,5]
[334516636,1723171881367,-503.28001157,0.00024395,5]
[334516637,1723171881379,-500.0,0.00024395,5]
[334516638,1723171881388,-500.0,0.00024395,5]
[334516639,1723171881398,-288.33,0.00024395,5]
[334516640,1723171881407,-500.0,0.00024395,5]
[334516641,1723171881417,-1030.47,0.00024395,5]
[334516642,1723171881426,-1030.47,0.00024395,5]
[334516643,1723171881435,-500.0,0.00024395,5]
[334516644,1723171881444,-500.0,0.00024395,5]
[334516645,1723171881454,-2943.42,0.00024395,5]
[334516646,1723171881463,-2943.42,0.00024395,5]
[334516647,1723171881472,-500.0,0.00024395,5]
[334516648,1723171881481,-500.0,0.00024395,5]
[334516649,1723171881493,-500.0,0.00024395,5]
[334516650,1723171881503,-500.0,0.00024395,5]
[334516651,1723171881512,-500.0,0.00024395,5]